bitfinex-derivatives/quotes_ETHF0:USTF0_20250103
["timestamp","ask_amount","ask_price","bid_price","bid_amount"]
[1735924717852,2.4084079,3578.1,3577.9,0.5543]
[1735924718058,2.1287279,3578.1,3577.9,0.5543]
[1735924718253,42.9287279,3578.1,3577.9,0.5543]
[1735924718754,46.1365279,3578.1,3577.9,0.5543]
[1735924719155,46.4162179,3578.1,3577.9,0.5543]
[1735924719358,46.1365279,3578.1,3577.9,0.5543]
[1735924719557,3.2078,3578.1,3577.9,0.834]
[1735924719859,3.48748,3578.1,3577.9,0.5543]
[1735924720057,46.4162079,3578.1,3577.9,0.5543]
[1735924720453,46.1365279,3578.1,3577.9,0.5543]
[1735924721059,46.4162179,3578.1,3577.9,0.5543]
[1735924721559,46.4162179,3578.1,3577.9,0.834]
[1735924721751,44.0078,3578.1,3577.9,0.834]
[1735924721951,44.0078,3578.1,3578.0,0.27969]
[1735924722161,3.2078,3578.1,3578.0,0.27969]
[1735924722756,3.2078,3578.1,3577.9,0.5543]
[1735924723261,0.45454372,3578.0,3577.9,0.5543]
[1735924723460,0.45454372,3578.0,3577.8,0.5198]
[1735924723461,0.17485372,3578.0,3577.1,1.168]
[1735924723661,0.27972,3577.6,3577.4,0.27973]
[1735924723960,0.17485372,3577.5,3577.4,0.27973]
[1735924724163,0.17487626,3577.5,3577.4,0.27974]
[1735924727157,0.2797,3577.9,3577.3,1.6248]
[1735924727355,0.17486877,3577.8,3577.3,1.6248]
[1735924727553,0.17486877,3577.7,3577.6,0.27972]
[1735924727765,0.45457787,3577.7,3577.4,0.27974]
[1735924727965,0.45457787,3577.6,3577.3,1.90454]
[1735924728161,0.17485787,3577.5,3577.3,1.90454]
[1735924728362,2.1287279,3577.8,3577.3,1.6248]
[1735924728363,0.17485787,3577.4,3577.3,1.6248]
[1735924728867,0.45459787,3577.4,3577.3,1.6248]
[1735924729062,0.17485787,3577.4,3577.3,1.6248]
[1735924729271,0.17485787,3577.4,3577.3,1.90455]
[1735924730263,0.27972,3577.6,3577.3,1.90455]
[1735924730468,0.17487596,3577.5,3577.3,1.6248]
[1735924730672,0.17487596,3577.4,3577.3,1.90455]
[1735924731166,0.17487596,3577.4,3577.3,1.6248]
[1735924732467,0.45461596,3577.4,3577.3,1.6248]
[1735924732669,0.17487596,3577.4,3577.3,1.6248]
[1735924732967,0.45461596,3577.4,3577.3,1.6248]
[1735924733565,0.45461596,3577.4,3577.3,0.5357]
[1735924735569,0.17487596,3577.4,3577.0,1.101]
[1735924735875,3.48756,3577.2,3577.1,0.27976]
[1735924736165,0.27976,3577.1,3577.0,1.6235]
[1735924736377,0.45465884,3577.1,3577.0,1.6235]
[1735924736664,1.10390111,3577.1,3577.0,1.6235]
[1735924737065,0.45465884,3577.1,3577.0,1.6235]
[1735924737469,0.45465884,3577.1,3577.0,1.90327]
[1735924737669,0.17489884,3577.1,3577.0,1.90327]
[1735924738561,2.18407487,3577.4,3577.3,0.27975]
[1735924738762,2.18407487,3577.5,3577.4,0.27974]
[1735924739271,0.47087487,3577.5,3577.4,0.27974]
[1735924740072,3.48749,3578.0,3577.7,0.27971]
[1735924740267,2.1287279,3577.9,3577.6,0.27972]
[1735924740575,2.1287279,3577.9,3577.7,0.27971]
[1735924740775,2.1287279,3577.9,3577.8,0.27971]
[1735924741471,2.4084279,3577.9,3577.7,0.27971]
[1735924741672,3.2078,3578.0,3577.9,0.2797]
[1735924742670,3.2078,3578.0,3577.7,1.0966]
[1735924742971,3.2078,3578.0,3577.9,0.2797]
[1735924743675,3.27611231,3578.2,3578.1,0.27968]
[1735924744076,0.27967,3578.3,3578.0,0.27969]
[1735924744672,3.27611231,3578.4,3577.7,4.3044]
[1735924745168,3.55577231,3578.4,3578.1,0.27968]
[1735924745373,3.55577231,3578.4,3578.2,0.82887]
[1735924745779,3.27611231,3578.4,3578.2,0.5492]
[1735924745979,3.27611231,3578.4,3578.3,0.27967]
[1735924746476,3.27611231,3578.4,3578.3,0.81737]
[1735924746870,4.36989417,3578.6,3578.3,0.5377]
[1735924747075,4.36989417,3578.6,3578.4,0.5243]
[1735924747279,4.36989417,3578.6,3578.4,0.80396]
[1735924747473,4.36989417,3578.6,3578.4,0.5243]
[1735924747779,4.64953417,3578.6,3578.4,0.5243]
[1735924748285,3.27222653,3578.5,3578.4,0.5243]
[1735924749473,7.03072207,3578.7,3578.4,0.5243]
[1735924749673,0.27965,3578.6,3578.4,0.5243]
[1735924750073,7.03072207,3578.7,3578.4,0.80396]
[1735924750281,0.27964,3578.6,3578.4,0.80396]
[1735924750480,3.2078,3578.5,3578.4,0.5243]
[1735924750678,3.2078,3578.5,3578.3,0.5377]
[1735924750879,0.27966,3578.4,3578.3,0.5377]
[1735924751775,40.8,3578.4,3578.3,0.5377]
[1735924751981,40.8,3578.4,3578.3,0.81737]
[1735924752384,45.16989417,3578.4,3578.3,0.81737]
[1735924752985,4.36989417,3578.4,3578.3,0.81737]
[1735924753580,3.27474385,3578.5,3578.4,0.27966]
[1735924753774,2.85263451,3578.5,3578.4,0.27966]
[1735924753975,2.41964385,3578.5,3578.4,0.27966]
[1735924754678,0.43300437,3578.7,3578.3,3.7455]
[1735924754878,4.36989417,3579.1,3578.6,2.1287279]
[1735924755078,4.36989417,3579.1,3578.7,0.5703]
[1735924755287,0.27961,3579.0,3578.7,1.103]
[1735924755579,4.36989417,3579.1,3578.7,1.103]
[1735924755785,4.64950417,3579.1,3578.7,1.38263]
[1735924756087,4.64950417,3579.1,3578.7,1.103]
[1735924756580,4.36989417,3579.1,3578.7,1.103]
[1735924756885,4.64950417,3579.1,3578.7,1.38263]
[1735924757185,0.27961,3579.0,3578.7,1.103]
[1735924757483,0.27961,3579.1,3578.7,1.38263]
[1735924757683,7.85729417,3579.2,3578.8,0.27963]
[1735924758481,3.4874,3579.2,3578.8,0.27963]
[1735924758976,2.1287279,3579.1,3578.3,0.5377]
[1735924759174,2.1287279,3578.5,3577.3,22.53411327]
[1735924759378,3.2078,3577.9,3577.3,20.68512537]
[1735924759577,3.2078,3577.9,3577.3,2.1287279]
[1735924759578,40.8,3577.7,3577.3,2.1287279]
[1735924759782,0.43219942,3577.4,3577.3,2.4084779]
[1735924759984,0.43219942,3577.6,3577.5,0.27973]
[1735924760180,0.43219942,3577.8,3577.5,3.2957279]
[1735924760484,0.43219942,3577.8,3577.7,0.27971]
[1735924760782,40.8,3578.1,3577.7,3.2078]
[1735924760783,0.43219942,3578.0,3577.7,3.2078]
[1735924760982,0.43219942,3578.0,3577.9,2.4084279]
[1735924761379,0.43219942,3578.2,3578.0,0.27969]
[1735924761574,0.43219942,3578.2,3577.9,2.1287279]
[1735924761575,4.80209359,3578.3,3578.2,0.27967]
[1735924761880,2.65679417,3578.3,3578.2,2.4083979]
[1735924762084,1.80159417,3578.3,3578.2,2.4083979]
[1735924762279,5.44041801,3578.5,3578.4,0.27966]
[1735924762477,0.43219942,3578.6,3578.5,0.27965]
[1735924762685,0.43260901,3578.8,3578.5,5.3365279]
[1735924762879,5.95681801,3579.2,3578.5,5.3365279]
[1735924763079,5.95681801,3579.2,3578.8,0.27962]
[1735924763481,6.23641801,3579.2,3578.8,0.27962]
[1735924763681,0.5164,3579.2,3578.8,0.27962]
[1735924764088,0.5164,3579.2,3578.5,5.3365279]
[1735924764291,3.2078,3578.9,3578.3,1.167]
[1735924764582,0.27967,3578.3,3578.0,1.167]
[1735924764792,0.43256283,3578.1,3577.9,2.4084279]
[1735924764978,0.43256283,3578.1,3577.8,1.167]
[1735924765176,0.43256283,3578.1,3577.6,3.1820279]
[1735924765177,41.23264871,3578.0,3577.6,3.1820279]
[1735924765382,0.43264871,3577.7,3577.6,2.6514279]
[1735924765784,41.07969,3578.0,3577.6,2.6514279]
[1735924766092,0.2797,3577.9,3577.6,2.6514279]
[1735924766684,41.0797,3578.0,3577.6,2.6514279]
[1735924767088,40.8,3578.0,3577.7,0.27971]
[1735924767290,40.8,3578.0,3577.6,2.9311479]
[1735924767592,40.8,3578.0,3577.7,0.27971]
[1735924768286,40.8,3578.0,3577.8,0.2797]
[1735924768488,40.8,3578.0,3577.6,2.6514279]
[1735924768692,1.1191,3578.2,3577.9,2.4084279]
[1735924768896,1.1191,3578.2,3577.9,2.4084179]
[1735924769787,1.1191,3578.2,3577.9,2.1287279]
[1735924769988,1.1191,3578.2,3577.8,0.2797]
[1735924770287,1.1191,3578.2,3577.6,2.6514279]
[1735924770589,1.1191,3578.2,3577.9,0.2797]
[1735924770791,0.27968,3578.1,3577.7,1.44671]
[1735924771185,1.1191,3578.2,3577.8,0.2797]
[1735924771386,1.1191,3578.2,3577.6,2.6514279]
[1735924771587,1.1191,3578.2,3577.9,0.2797]
[1735924772493,1.1191,3578.2,3577.7,1.167]
[1735924772694,1.1191,3578.2,3578.0,0.27969]
[1735924772895,1.39878,3578.2,3577.9,0.27969]
[1735924773088,1.1191,3578.2,3578.0,0.27969]
[1735924773488,1.1191,3578.2,3577.6,3.8184279]
[1735924773691,1.1191,3578.2,3578.1,0.27968]
[1735924774290,1.39877,3578.2,3578.1,0.27968]
[1735924774498,1.1191,3578.2,3578.1,0.27968]
[1735924775091,1.1191,3578.2,3577.8,0.2797]
[1735924775292,3.2078,3578.1,3577.6,3.8184279]
[1735924775487,3.48748,3578.1,3578.0,0.27969]
[1735924775691,1.39878,3578.2,3578.0,0.27969]
[1735924776196,1.39878,3578.2,3577.6,3.8184279]
[1735924776197,0.27969,3578.1,3577.9,0.2797]
[1735924776691,1.1191,3578.2,3577.6,3.8184279]
[1735924776896,0.27969,3578.0,3577.8,0.2797]
[1735924777201,1.1191,3578.2,3577.7,0.27971]
[1735924777202,0.2797,3577.9,3577.7,0.27971]
[1735924778002,0.2797,3577.9,3577.3,2.1287279]
[1735924778003,3.2078,3578.1,3577.3,3.2957279]
[1735924778194,3.48749,3578.1,3577.5,0.5354]
[1735924778499,3.2078,3578.1,3578.0,0.27969]
[1735924779199,0.27969,3578.0,3577.8,0.2797]
[1735924779398,3.2078,3578.1,3577.5,0.5354]
[1735924779700,3.2078,3578.1,3577.8,0.27971]
[1735924779904,0.27969,3578.0,3577.8,0.27971]
[1735924780103,0.27969,3578.0,3577.7,0.27971]
[1735924780104,0.2797,3578.0,3577.7,0.27971]
[1735924780298,3.2078,3578.1,3577.5,0.5354]
[1735924780499,0.27971,3577.8,3577.5,0.81512]
[1735924781102,0.5616,3577.7,3577.5,0.81512]
[1735924781304,0.5616,3577.7,3577.5,0.5354]
[1735924781605,0.5616,3577.7,3577.3,2.1287279]
[1735924781798,0.5616,3577.7,3577.4,0.27973]
[1735924781994,0.5206,3577.6,3577.4,0.27973]
[1735924782400,0.5206,3577.6,3577.3,2.1287279]
[1735924782601,1.31772,3577.6,3577.3,2.4084679]
[1735924782803,1.31772,3577.6,3577.3,2.1287279]
[1735924783304,1.038,3577.6,3577.4,0.27973]
[1735924783493,1.31772,3577.6,3577.2,0.27975]
[1735924783693,3.2078,3577.3,3576.7,8.70526059]
[1735924783897,3.2078,3577.3,3576.7,2.6628279]
[1735924783898,3.48755,3577.3,3576.7,2.6628279]
[1735924784103,0.43270905,3576.9,3576.8,0.27978]
[1735924784399,0.27978,3577.0,3576.7,2.1287279]
[1735924784705,0.5639,3576.8,3576.5,6.66743296]
[1735924784905,0.5639,3576.8,3576.7,0.27979]
[1735924785203,40.8,3577.1,3577.0,0.27977]
[1735924785702,0.5599,3577.2,3576.9,0.27977]
[1735924785901,0.83965,3577.2,3576.9,0.80717]
[1735924786098,40.8,3577.1,3576.9,0.5274]
[1735924786706,40.8,3577.1,3576.9,0.80718]
[1735924786897,0.83966,3577.2,3576.9,0.80718]
[1735924787098,0.27976,3577.1,3576.9,0.5274]
[1735924787304,3.48757,3577.0,3576.7,2.4085179]
[1735924787498,0.5518,3576.9,3576.8,0.27978]
[1735924787998,1.1042,3576.9,3576.8,0.27978]
[1735924788199,1.1042,3576.9,3576.6,0.5274]
[1735924788399,1.38398,3576.9,3576.6,0.5274]
[1735924788703,1.38398,3576.9,3576.6,0.8072]
[1735924789005,0.5518,3576.9,3576.7,2.1287279]
[1735924789208,0.5518,3576.9,3576.7,2.4085179]
[1735924789704,0.5518,3576.9,3576.5,0.09090027]
[1735924790106,0.5518,3576.9,3576.7,0.27979]
[1735924790406,0.83158,3576.9,3576.5,0.37071027]
[1735924790606,0.5518,3576.9,3576.5,0.09090027]
[1735924790803,0.5518,3576.9,3576.6,0.2798]
[1735924790998,0.5518,3576.9,3576.5,0.09090027]
[1735924791206,0.43200209,3576.6,3576.5,0.37071027]
[1735924791597,0.43200209,3576.7,3576.5,0.09090027]
[1735924791807,0.5518,3576.9,3576.6,0.2798]
[1735924792307,0.5518,3576.9,3576.5,0.09090027]
[1735924792604,0.5599,3577.2,3576.7,2.1287279]
[1735924792798,1.40036,3577.2,3576.8,0.80908]
[1735924792998,1.1206,3577.2,3576.8,0.5293]
[1735924793204,1.1206,3577.2,3577.1,0.27976]
[1735924793409,0.5599,3577.2,3577.1,0.27976]
[1735924793611,3.2078,3577.4,3577.3,0.27975]
[1735924794405,3.38268505,3577.4,3577.3,0.27975]
[1735924794909,3.38268505,3577.4,3576.7,3.2078]
[1735924795101,0.17488505,3577.3,3576.9,0.5661]
[1735924795301,0.17488505,3577.2,3576.9,0.5661]
[1735924795511,0.17488505,3577.1,3577.0,0.27977]
[1735924798917,0.69678505,3577.1,3577.0,0.27977]
[1735924799306,0.69679577,3577.1,3577.0,0.27977]
[1735924799816,0.69678834,3577.1,3577.0,0.27977]
[1735924800317,0.17488834,3577.1,3577.0,0.27977]
[1735924802910,0.1748736,3577.1,3577.0,0.27977]
[1735924804716,0.17486989,3577.1,3577.0,3.48757]
[1735924805815,0.60828507,3577.1,3577.0,3.48757]
[1735924806016,0.17486989,3577.1,3577.0,3.48757]
[1735924810612,0.17487394,3577.1,3577.0,3.48757]
[1735924813022,0.1748719,3577.1,3577.0,3.2078]
[1735924813319,0.1748719,3577.1,3577.0,3.48757]
[1735924813616,4.8948219,3577.7,3577.0,3.2078]
[1735924813816,0.5357,3577.8,3577.4,2.1287279]
[1735924814016,0.5357,3577.8,3577.5,1.5965]
[1735924814316,0.5357,3577.8,3577.5,0.5344]
[1735924814517,0.5357,3577.8,3577.2,0.5103]
[1735924814712,0.27973,3577.5,3577.2,0.27975]
[1735924814915,1.0754,3577.4,3577.0,3.2078]
[1735924815307,0.5357,3577.3,3577.0,3.2078]
[1735924815523,0.81545,3577.3,3577.0,3.48757]
[1735924815825,0.5357,3577.3,3577.0,3.48757]
[1735924816018,0.81545,3577.3,3577.0,3.48757]
[1735924816618,0.5357,3577.3,3577.0,3.2078]
[1735924816826,0.5357,3577.3,3577.1,0.27976]
[1735924817020,0.5357,3577.3,3577.0,3.2078]
[1735924817317,0.81545,3577.3,3577.0,3.48756]
[1735924817524,0.5357,3577.3,3577.0,3.48756]
[1735924817718,0.5357,3577.3,3577.1,0.27976]
[1735924818117,0.5357,3577.3,3577.0,3.2078]
[1735924818317,0.5357,3577.3,3577.2,0.27975]
[1735924818519,3.27850358,3577.4,3577.3,0.27975]
[1735924820522,3.71299743,3577.4,3577.3,0.27975]
[1735924821023,0.521,3578.1,3577.2,0.4953]
[1735924821024,3.27850358,3577.9,3577.2,0.4953]
[1735924821226,3.27850358,3577.9,3577.7,0.27971]
[1735924821427,3.27850358,3577.9,3577.6,1.166]
[1735924821731,3.27850358,3577.9,3577.7,0.27971]
[1735924821933,3.27850358,3577.9,3577.6,1.6656]
[1735924822226,3.27850358,3577.9,3577.7,0.27971]
[1735924822428,3.27850358,3577.9,3577.6,1.94532]
[1735924822429,3.55820358,3577.9,3577.6,1.94532]
[1735924822729,3.27850358,3577.9,3577.6,1.166]
[1735924822922,0.27971,3577.7,3577.6,1.166]
[1735924823127,0.5375,3577.8,3577.6,1.166]
[1735924823425,0.4968,3577.7,3577.6,1.166]
[1735924823623,41.2968,3577.7,3577.6,1.166]
[1735924824029,0.4968,3577.7,3577.6,1.44572]
[1735924825123,3.27850358,3577.8,3577.7,0.27971]
[1735924826331,3.81220358,3578.0,3577.6,1.6685]
[1735924826522,3.81220358,3578.0,3577.8,0.2797]
[1735924827026,3.81220358,3578.0,3577.9,0.7746]
[1735924828535,3.71301188,3578.0,3577.9,0.7746]
[1735924828725,3.71301188,3578.0,3577.9,1.2976]
[1735924828927,3.27850358,3578.0,3577.9,1.2976]
[1735924829128,0.43450742,3578.0,3577.9,1.2976]
[1735924829435,0.43440026,3578.0,3577.9,1.2976]
[1735924829637,0.27969,3578.0,3577.6,0.27972]
[1735924829931,1.0247,3577.9,3577.5,4.39387218]
[1735924830127,40.8,3577.8,3577.6,0.27972]
[1735924830332,0.5122,3578.1,3577.7,2.1287279]
[1735924830533,0.5122,3578.1,3578.0,2.4084179]
[1735924830829,1.0277,3578.3,3578.2,0.27967]
[1735924831736,3.27850358,3578.5,3578.1,0.4917]
[1735924831928,3.27850358,3578.5,3578.3,2.1287279]
[1735924832128,3.27850358,3578.5,3578.3,2.4083879]
[1735924832330,3.27850358,3578.5,3578.2,0.27967]
[1735924832525,3.55816358,3578.5,3578.1,0.4917]
[1735924832936,0.27966,3578.5,3578.1,0.77138]
[1735924833341,0.4918,3578.6,3578.2,0.27967]
[1735924833637,0.4918,3578.6,3578.3,0.27966]
[1735924834028,0.4918,3578.6,3578.1,0.4917]
[1735924834227,0.4918,3578.6,3578.2,0.27967]
[1735924834440,4.04995358,3578.6,3578.2,0.27967]
[1735924834629,0.27965,3578.5,3578.2,0.27967]
[1735924834932,3.77030358,3578.6,3577.9,2.1287279]
[1735924835236,4.04995358,3578.6,3578.3,0.27966]
[1735924835634,3.27850358,3578.5,3578.3,0.27966]
[1735924835929,3.27850358,3578.5,3578.4,0.27966]
[1735924836135,3.27850358,3578.5,3578.2,2.1287279]
[1735924836336,3.27850358,3578.5,3578.3,0.27967]
[1735924836843,3.77030358,3578.6,3578.3,0.27966]
[1735924837040,0.27966,3578.5,3578.2,0.27967]
[1735924837546,0.27966,3578.5,3578.3,0.27966]
[1735924837847,0.27966,3578.5,3578.2,0.27967]
[1735924838141,3.55816358,3578.5,3578.2,0.27967]
[1735924838435,3.55816358,3578.5,3577.9,2.1287279]
[1735924838635,3.27850358,3578.5,3577.9,2.1287279]
[1735924838840,3.2078,3578.3,3577.7,1.6768]
[1735924839042,3.2078,3578.3,3577.6,2.6278279]
[1735924839043,0.2797,3577.9,3577.6,2.4084479]
[1735924839239,1.5484,3577.8,3577.6,2.4084479]
[1735924839442,1.82811,3577.8,3577.5,5.83860218]
[1735924839840,1.82811,3577.8,3577.5,1.44473]
[1735924840441,1.82811,3577.8,3577.5,0.27973]
[1735924840635,0.27972,3577.7,3577.5,0.27973]
[1735924840839,1.82811,3577.8,3577.5,0.27973]
[1735924841037,1.5484,3577.8,3577.5,0.27973]
[1735924841237,1.82811,3577.8,3577.5,0.27973]
[1735924841647,1.5484,3577.8,3577.4,3.2078]
[1735924841945,1.5484,3577.8,3577.6,2.4084379]
[1735924842345,1.5484,3577.8,3577.7,0.27971]
[1735924842740,1.0363,3577.8,3577.7,0.79091]
[1735924843844,0.5051,3577.8,3577.7,0.79091]
[1735924844143,3.27850358,3577.9,3577.8,0.27971]
[1735924844948,3.27850358,3577.9,3577.8,3.48751]
[1735924845145,3.71269163,3577.9,3577.8,3.48751]
[1735924845644,0.43418805,3577.9,3577.8,3.48751]
[1735924845842,4.31520358,3578.2,3578.0,0.27968]
[1735924846043,4.31520358,3578.2,3578.0,0.27969]
[1735924846246,4.31520358,3578.2,3577.7,1.5679]
[1735924846441,4.59488358,3578.2,3577.9,0.27969]
[1735924846641,4.31520358,3578.2,3577.9,0.27969]
[1735924846836,4.31520358,3578.2,3577.7,1.5679]
[1735924847042,0.27968,3578.1,3577.7,2.49881]
[1735924847241,0.5342,3578.0,3577.7,1.165]
[1735924847648,0.27971,3577.7,3577.5,4.39387218]
[1735924847850,1.0247,3577.6,3577.5,4.39387218]
[1735924848442,1.0247,3577.6,3577.5,0.27973]
[1735924848647,1.0247,3577.6,3577.3,2.1287279]
[1735924848847,1.0247,3577.6,3577.5,0.27973]
[1735924851246,1.0247,3577.6,3577.4,0.27974]
[1735924851449,1.0247,3577.6,3577.5,0.27973]
[1735924852351,1.0247,3577.6,3577.4,0.27973]
[1735924852553,1.0247,3577.6,3577.3,2.1287279]
[1735924852752,1.0247,3577.6,3577.4,0.27973]
[1735924852956,1.0247,3577.6,3577.5,0.27973]
[1735924853352,1.0247,3577.6,3577.3,2.1287279]
[1735924853550,1.0247,3577.6,3577.5,0.27973]
[1735924855352,3.27850358,3577.8,3577.7,0.27971]
[1735924856361,3.78840358,3577.9,3577.8,0.27971]
[1735924857564,3.78840358,3577.9,3577.7,0.77531]
[1735924857859,4.06810358,3577.9,3577.5,0.27972]
[1735924858157,4.06810358,3577.9,3577.3,5.8321279]
[1735924858547,3.78840358,3577.9,3577.3,5.8321279]
[1735924858856,3.27850358,3577.8,3577.6,2.1287279]
[1735924859062,3.27850358,3577.8,3577.7,0.27971]
[1735924860155,3.27850358,3577.8,3577.7,0.82591]
[1735924861859,3.27850358,3577.8,3577.7,4.03371]
[1735924862061,3.71239895,3577.8,3577.7,4.03371]
[1735924862454,3.27850358,3577.8,3577.7,4.03371]
[1735924862851,5.46417263,3578.2,3578.0,0.27969]
[1735924863051,4.0296858,3578.2,3578.1,7.3042079]
[1735924863666,2.18634589,3578.4,3578.3,0.27967]
[1735924864569,2.18634589,3578.9,3578.8,0.27963]
[1735924864964,2.18634589,3578.9,3578.5,5.8429279]
[1735924865370,2.18634589,3578.9,3578.8,0.27963]
[1735924865580,2.18634589,3578.9,3578.7,0.27963]
[1735924865872,2.72754589,3579.0,3578.6,0.27964]
[1735924866174,2.72754589,3579.0,3578.8,0.27963]
[1735924866968,2.72754589,3579.0,3578.8,0.27962]
[1735924867175,2.72754589,3579.0,3578.9,0.27962]
[1735924867377,2.72754589,3579.0,3578.5,5.8429279]
[1735924867580,2.72754589,3579.0,3578.9,0.27962]
[1735924867775,2.72754589,3579.0,3578.8,0.27962]
[1735924868076,2.72754589,3579.0,3578.9,0.27962]
[1735924868871,2.72754589,3579.0,3578.8,0.27962]
[1735924869069,0.5412,3579.0,3578.9,0.27962]
[1735924869869,0.5412,3579.0,3578.3,4.39222539]
[1735924870075,0.5412,3579.0,3578.4,0.27965]
[1735924870076,0.27964,3578.7,3578.4,0.27965]
[1735924870275,1.0991,3578.6,3578.5,0.27965]
[1735924870474,41.8991,3578.6,3578.5,0.27965]
[1735924870671,41.8991,3578.6,3578.2,2.1287279]
[1735924870879,0.4989,3578.5,3578.3,0.27966]
[1735924871080,0.4989,3578.5,3578.4,0.27966]
[1735924871377,0.4989,3578.5,3578.3,0.27966]
[1735924872178,0.4989,3578.5,3578.2,2.1287279]
[1735924872473,0.4989,3578.5,3578.2,2.4083979]
[1735924872670,0.4989,3578.5,3578.3,0.27967]
[1735924873875,0.4989,3578.5,3577.9,4.39222539]
[1735924874075,3.2078,3578.3,3577.9,4.39222539]
[1735924874271,0.27969,3578.0,3577.9,4.39222539]
[1735924874477,0.27969,3578.0,3577.9,0.87622539]
[1735924874782,2.1287279,3578.2,3577.7,6.58882712]
[1735924874783,0.27971,3577.8,3577.7,6.58882712]
[1735924874980,5.6162379,3577.8,3577.7,6.58882712]
[1735924876076,0.27973,3577.6,3577.5,0.27973]
[1735924876674,3.2078,3577.8,3577.0,2.1287279]
[1735924876877,0.43244475,3577.1,3577.0,2.4084979]
[1735924879276,0.4324103,3577.1,3577.0,2.4084979]
[1735924879877,0.27976,3577.1,3576.9,3.7445]
[1735924880072,0.27976,3577.1,3576.8,0.5299]
[1735924880271,0.5139,3577.0,3576.8,0.5299]
[1735924880679,0.5139,3577.0,3576.9,0.27978]
[1735924880882,0.5139,3577.0,3576.8,0.80968]
[1735924881073,0.5139,3577.0,3576.8,0.5299]
[1735924881275,0.5139,3577.0,3576.8,0.80968]
[1735924881481,0.5139,3577.0,3576.9,0.27978]
[1735924881778,0.5139,3577.0,3576.8,0.80968]
[1735924881969,0.43235019,3577.0,3576.9,0.27978]
[1735924882282,0.27975,3577.2,3576.9,0.27978]
[1735924882582,0.27975,3577.2,3576.8,0.80968]
[1735924882887,0.27976,3577.1,3576.8,0.80968]
[1735924883080,0.5141,3577.0,3576.8,0.80968]
[1735924883473,0.5141,3577.0,3576.8,0.5299]
[1735924883675,0.43213497,3576.9,3576.8,0.80968]
[1735924883872,0.43213497,3577.0,3576.8,0.80968]
[1735924884078,0.43213497,3577.1,3576.8,0.5299]
[1735924884378,3.51805861,3577.3,3577.0,0.27977]
[1735924884786,1.33695,3577.3,3576.8,0.5299]
[1735924884987,0.43210265,3577.0,3576.9,0.27977]
[1735924885287,0.43210037,3577.0,3576.8,0.80968]
[1735924885479,0.43210037,3577.0,3576.8,0.5299]
[1735924885781,0.27976,3577.2,3576.8,0.80968]
[1735924885987,0.43201494,3576.9,3576.8,0.80968]
[1735924886481,0.43201494,3577.0,3576.8,0.5299]
[1735924886681,0.43201494,3577.1,3577.0,0.27977]
[1735924888191,0.43201494,3577.1,3576.8,0.5299]
[1735924888774,0.43201494,3577.1,3576.8,0.80968]
[1735924889087,0.71168464,3577.1,3576.8,0.5299]
[1735924889381,0.43191464,3577.0,3576.8,0.5299]
[1735924889588,0.43191464,3577.1,3576.8,0.80968]
[1735924890087,0.71167464,3577.1,3576.8,0.5299]
[1735924890783,0.27978,3576.9,3576.6,1.164]
[1735924890985,0.2798,3576.6,3576.5,0.09090027]
[1735924891185,3.4876,3576.6,3576.5,0.09090027]
[1735924891379,4.503,3576.6,3576.5,0.09090027]
[1735924891891,45.303,3576.6,3576.5,0.09090027]
[1735924893286,0.27984,3576.1,3575.9,0.27985]
[1735924893485,0.43127183,3576.1,3575.9,0.27985]
[1735924893782,0.71111183,3576.1,3575.9,0.27985]
[1735924893982,0.71112183,3576.0,3575.8,0.27986]
[1735924894285,0.7111596,3576.0,3575.7,0.27987]
[1735924894482,0.27985,3576.0,3575.8,0.27986]
[1735924894680,0.7111496,3576.1,3575.9,0.27985]
[1735924894881,0.27984,3576.1,3575.9,0.27985]
[1735924895082,0.71108879,3576.1,3575.9,0.27985]
[1735924895388,0.43124879,3576.1,3575.6,2.6143279]
[1735924895581,0.43124879,3576.1,3575.9,0.27985]
[1735924895782,0.71108879,3576.2,3575.9,0.27985]
[1735924895983,0.27984,3576.1,3575.8,0.27986]
[1735924896177,0.43124879,3576.1,3575.6,0.4856]
[1735924896382,0.27987,3575.7,3575.6,0.4856]
[1735924896579,3.2078,3575.8,3575.5,0.5066]
[1735924896882,3.63904879,3575.8,3575.1,2.1287279]
[1735924897189,0.43124879,3575.7,3575.1,2.1287279]
[1735924897389,0.71111879,3575.7,3575.3,0.27989]
[1735924897685,0.71111879,3575.7,3575.4,0.27989]
[1735924897890,0.43124879,3575.7,3575.2,0.5164]
[1735924898090,0.71112879,3575.7,3575.3,0.2799]
[1735924898388,0.71112879,3575.7,3575.4,0.27989]
[1735924898887,0.43124879,3575.7,3575.4,0.27989]
[1735924899392,0.71112879,3575.7,3575.4,0.27989]
[1735924899684,0.43124879,3575.7,3575.0,3.2078]
[1735924899889,0.4765,3575.9,3574.2,3.2078]
[1735924899890,0.43124879,3575.1,3574.2,3.2078]
[1735924900082,0.43124879,3574.8,3574.2,3.2078]
[1735924900283,41.07995,3574.7,3574.4,0.27997]
[1735924900487,40.8,3574.7,3574.4,0.27997]
[1735924900789,41.07995,3574.7,3574.3,0.27998]
[1735924900985,40.8,3574.7,3573.9,6.58882712]
[1735924901191,0.43093405,3574.3,3574.1,0.27999]
[1735924901392,0.17500964,3574.2,3574.1,0.27999]
[1735924901692,0.60573763,3574.2,3574.1,0.80319]
[1735924901884,0.17502956,3574.2,3574.1,0.80319]
[1735924902281,0.17502956,3574.2,3574.1,0.5232]
[1735924902585,0.17502956,3574.2,3574.1,0.8032]
[1735924902586,0.60573763,3574.2,3574.1,0.8032]
[1735924902780,0.43070807,3574.6,3574.1,3.731]
[1735924902983,0.43070807,3574.7,3574.6,0.27996]
[1735924903185,0.60570579,3574.7,3574.6,0.27996]
[1735924903390,0.60560703,3574.7,3574.6,0.81466]
[1735924903589,0.17499764,3574.7,3574.6,0.81466]
[1735924903892,0.43071808,3574.7,3574.6,0.81466]
[1735924904087,0.60570926,3574.7,3574.6,1.0549]
[1735924904281,0.17498607,3574.7,3574.6,1.33486]